Cogmind - Beta 17 @@@ ROGUE MODE // 2026.07.14 @ 13:03:14 Player: Hadza Result: Destroyed by H-66 Slayer with Gauss Rifle Performance ------------- Evolutions (3) 1500 Regions Visited (10) 2000 Robots Destroyed (98) 490 Value Destroyed (3562) 3562 Prototype IDs (24) 480 Alien Tech Used (0) 0 Bonus (622) 622 TOTAL SCORE: 8654 Bonus ------- Aligned with FarCom 300 Met Imprinter 300 Was Imprinted 300 Friendly Fire -278 Cogmind --------- Core Integrity 0/700 Matter 88/300 Energy 98/100 System Corruption 8% Temperature Cool (1) Movement Treading (210) Ox1 Location -6/Proximity Caves Parts ------- > --- POWER (1) -------- (None) > --- PROPULSION (2) --- Armored Treads > --- UTILITY (6) ------ High-capacity Storage Unit System Shield > --- WEAPON (4) ------- (None) > --- INVENTORY (20) --- Light Ion Engine Improved Deuterium Engine Makeshift Hacking Suite Makeshift System Shield Makeshift System Shield Relay Coupler [Programmer] (49) Relay Coupler [Programmer] (88) Dirty Datajack (20) Dirty Datajack (20) Dirty Datajack (20) Dirty Datajack (20) Dirty Datajack (20) Improved Datajack Peak State ------------ > --- POWER ------------ Reinforced Deuterium Engine > --- PROPULSION ------- Armored Treads Medium Treads > --- UTILITY ---------- Cryofiber Web Improved Heat Sink High-capacity Storage Unit Hardened Medium Armor Plating Reactive Plating System Shield > --- WEAPON ----------- AWS/Thermal Firepult > --- INVENTORY -------- Light Ion Engine Light Nuclear Core Improved Deuterium Engine Medium Treads Wheel Hardened Light Armor Plating Hardened Light Armor Plating Heavy Rocket Launcher Heavy Rocket Launcher Dirty Datajack Dirty Datajack Dirty Datajack Dirty Datajack Dirty Datajack Dirty Datajack [Rating: 69] Favorites ----------- Power Reinforced Deuterium Engine Engine Reinforced Deuterium Engine Power Core Light Nuclear Core Propulsion Armored Treads Treads Armored Treads Wheel Wheel Utility High-capacity Storage Unit Device Cryofiber Web Storage High-capacity Storage Unit Processor Core Analyzer Hackware System Shield Protection Hardened Light Armor Plating Weapon Grenade Launcher Energy Gun AWS/Thermal Energy Cannon Firepult Ballistic Gun Light Assault Rifle Launcher Grenade Launcher Special Weapon Molecular Deconstructor Build | -11 -10 -10 -10 -9 -8 -7 -7 -7 -7 -6 ------- Run | Yrd Mat Min Exi Min Mat Fac Low Low Zio Pro Slots Evolved 6 | . . . . . 4 2 . . . . Power . | . . . . . . . . . . . Propulsion . | . . . . . . . . . . . Utility 4 | . . . . . 2 2 . . . . Weapon 2 | . . . . . 2 . . . . . Parts Attached 47 | 6 7 2 3 . 11 4 1 6 3 4 Power 7 | 1 1 1 . . 2 . . . 1 1 Engine 5 | 1 1 1 . . 2 . . . . . Core 2 | . . . . . . . . . 1 1 Reactor . | . . . . . . . . . . . Propulsion 9 | 2 . . . . 4 . . 2 . 1 Treads 8 | 2 . . . . 3 . . 2 . 1 Leg . | . . . . . . . . . . . Wheel 1 | . . . . . 1 . . . . . Hover . | . . . . . . . . . . . Flight . | . . . . . . . . . . . Utility 14 | 1 . . 1 . 3 4 1 2 2 . Device 5 | . . . . . 2 2 . . 1 . Storage 2 | 1 . . 1 . . . . . . . Processor 1 | . . . . . . . . . 1 . Hackware 2 | . . . . . 1 1 . . . . Protection 4 | . . . . . . 1 1 2 . . Artifact . | . . . . . . . . . . . Weapon 17 | 2 6 1 2 . 2 . . 2 . 2 Energy Gun 6 | 1 1 . 2 . 1 . . . . 1 Energy Cannon 3 | . 2 . . . 1 . . . . . Ballistic Gun 1 | 1 . . . . . . . . . . Ballistic Cannon . | . . . . . . . . . . . Launcher 6 | . 3 1 . . . . . 2 . . Special Weapon 1 | . . . . . . . . . . 1 Impact Weapon . | . . . . . . . . . . . Slashing Weapon . | . . . . . . . . . . . Piercing Weapon . | . . . . . . . . . . . Special Melee Weapon . | . . . . . . . . . . . Unidentified Prototypes 1 | . . . . . . . . . . 1 Corrupted Parts 2 | . . . . . . . . . . 2 System Corruption 8 | . . . . . . . . . . 8 Parts Lost 32 | . 2 3 . 1 3 3 . 9 . 11 Power 6 | . 1 1 . 1 . . . 1 . 2 Propulsion 5 | . . 1 . . . . . 2 . 2 Utility 10 | . . . . . . 2 . 5 . 3 Weapon 11 | . 1 1 . . 3 1 . 1 . 4 Highest Loss Streak 10 | . 2 3 . 1 1 1 . 5 . 10 To Critical Strikes . | . . . . . . . . . . . Average Backups 8 | 2 5 7 6 6 4 3 8 13 11 14 Power 1 | 1 . . . . . 1 3 3 3 2 Propulsion . | . . . . . . 1 2 1 . . Utility . | . . . . . . . . 1 1 5 Weapon 2 | 1 5 7 6 6 3 . . 1 . . Tool/Special . | . . . . . . . . . . . Unused Backups 15 | . . . 2 . . . . 1 . 12 Power 1 | . . . . . . . . . . 1 Propulsion . | . . . . . . . . . . . Utility 5 | . . . . . . . . . . 5 Weapon 2 | . . . 2 . . . . . . . Tool/Special 7 | . . . . . . . . 1 . 6 Average Slot Usage (%) 71 | . 84 74 71 58 73 72 77 75 65 56 Engine 7 | . 13 13 14 1 8 7 7 6 . . Treads 13 | . 28 19 14 14 10 15 15 11 7 5 Wheel 2 | . . . . . 5 . . . 7 4 Device 6 | . . . . . 10 11 15 10 5 4 Storage 9 | . 14 14 14 14 9 7 7 7 7 7 Processor 1 | . . . . . . . . . 5 4 Hackware 4 | . . . . . 5 7 7 7 7 7 Protection 4 | . . . . . . 5 8 14 7 4 Energy Gun 5 | . 12 . 14 28 9 5 7 3 . . Energy Cannon 4 | . 10 2 . . 7 5 7 3 . . Launcher 9 | . 4 25 13 . 6 3 . 7 15 9 Peak Build Rating 69 | 6 9 9 12 11 54 63 68 69 35 48 Average Rating 31 | 3 7 6 8 10 31 50 62 50 29 28 On Entrance 22 | . 6 9 6 11 10 24 60 68 23 35 Avg Prop Armor Cover (%) 8 | . . . . . 8 . . 9 8 8 Naked Turns . | . . . . . . . . . . . Heaviest Build 105 | 11 16 16 49 49 87 97 105 105 65 65 Greatest Support 48 | 40 40 40 20 20 40 40 40 48 10 28 Greatest Overweight (x) 14 | . . . 2 2 7 2 2 5 6 14 Average Overweight (x) 2 | . . . . 2 5 1 2 2 5 5 Largest Inventory Capacity 20 | 8 8 8 20 20 20 20 20 20 20 20 Average Capacity 16 | 5 8 8 10 20 20 20 20 20 20 20 Most Carried 17 | 5 8 8 8 8 9 8 16 17 15 16 Average Carried 8 | 2 5 7 7 8 5 4 9 13 11 14 Final Capacity 20 | 8 8 8 20 20 20 20 20 20 20 20 Final Carried 16 | 2 8 7 8 8 7 5 16 10 14 13 Class Distribution -------------------- 49% | Mutant 14% | Scavenger-Tank 11% | Skirmisher 5% | Derelict-Mutant 4% | Scavenger-Mutant 4% | Tank 4% | Bomber Dominant Class ---------------- Mutant | -10/Materials Mutant | -10/Mines Mutant | -10/Exiles Mutant | -9/Mines Skirmisher | -8/Materials Tank | -7/Factory Scavenger-Tank | -7/Lower Caves Mutant | -7/Lower Caves Mutant | -7/Zion Derelict-Mutant | -6/Proximity Caves Resources | -11 -10 -10 -10 -9 -8 -7 -7 -7 -7 -6 ----------- Run | Yrd Mat Min Exi Min Mat Fac Low Low Zio Pro Matter Collected 1365 | 217 131 350 . 25 162 199 . 32 54 195 Remotely . | . . . . . . . . . . . Salvage Created 3306 | . 275 94 . 22 933 900 342 551 . 189 Parts 132 | . 15 7 . 1 45 30 7 19 . 8 Haulers Intercepted . | . . . . . . . . . . . Recyclers Shooed . | . . . . . . . . . . . Parts Field Recycled . | . . . . . . . . . . . Retrieved Matter . | . . . . . . . . . . . Parts Self-Destructed 15 | . . . . . . . 7 5 . 3 Prevented 2 | . . . . . . . . . . 2 Parts Restored . | . . . . . . . . . . . Kills | -11 -10 -10 -10 -9 -8 -7 -7 -7 -7 -6 ------- Run | Yrd Mat Min Exi Min Mat Fac Low Low Zio Pro Combat Hostiles Destroyed 84 | . 7 11 . . 18 16 8 20 . 4 Guns 21 | . 1 . . . 6 5 4 5 . . Cannons 5 | . . . . . 2 3 . . . . AOE 52 | . 6 11 . . 8 8 1 14 . 4 Classes Destroyed 15 | . 5 3 . . 4 1 1 1 . . Worker 6 | . 1 1 . 1 3 . . . . . Builder 5 | . 3 . . . 1 1 . . . . Tunneler 3 | . . . . . 3 . . . . . Recycler 1 | . . 1 . . . . . . . . Operator 2 | . 1 . . . . 1 . . . . Watcher 4 | . 1 . . . 3 . . . . . Swarmer 15 | . . 2 . . 4 . 3 6 . . Grunt 40 | . 7 2 . . 9 11 3 8 . . Duelist 2 | . . . . . . . 1 1 . . Sentry 8 | . . . . . 2 4 1 1 . . Specialist 5 | . . . . . 2 . . . . 3 Programmer 2 | . . . . . . 1 . . . 1 Heavy 1 | . . . . . 1 . . . . . Packrat 1 | . . . . . . . . 1 . . Master Thief 4 | . . . . . . . . 4 . . Assembled 7 | . . 7 . . . . . . . . Best Kill Streak 13 | . 6 7 . 1 12 4 8 13 . 3 Combat Bots Only 13 | . 3 7 . . 8 4 8 13 . 3 Max Kills in Single Turn 6 | . 5 2 . 1 6 3 2 3 . 2 Gunslinging . | . . . . . . . . . . . Exploded 3 | . 2 2 . . 3 2 1 3 . 2 Melee . | . . . . . . . . . . . Uniques/NPCs Destroyed . | . . . . . . . . . . . Combat | -11 -10 -10 -10 -9 -8 -7 -7 -7 -7 -6 -------- Run | Yrd Mat Min Exi Min Mat Fac Low Low Zio Pro Hostile Shots Fired 355 | . 29 26 . 22 52 38 20 51 . 117 Missed 112 | . 10 8 . 10 14 19 8 12 . 31 Hits 243 | . 19 18 . 12 38 19 12 39 . 86 Melee 8 | . . . . . . . . 8 . . Projectile 235 | . 19 18 . 12 38 19 12 31 . 86 Critical Strikes 4 | . . . . . 1 1 . . . 2 Damage Taken 4940 | . 307 284 . 135 763 476 126 1282 . 1567 Core 870 | . 63 10 . 34 52 51 . 215 . 445 Absorbed by Shields . | . . . . . . . . . . . Ignored by Resistances 87 | . . . . . . 10 18 59 . . Regen/Repaired (Parts) 288 | . . . . . . . . . 288 . Core Remaining (%) 82 | 100 . . . 57 90 . . . . . Volleys Fired 89 | . 12 11 . 2 18 14 7 15 . 10 Largest 4 | . 2 2 . 2 4 2 1 2 . 2 Hottest 250 | . 112 112 . 90 250 250 250 250 . 78 Shots Fired 229 | . 24 21 . 4 59 46 23 39 . 13 Gun 110 | . 8 . . 4 39 29 16 14 . . Cannon 41 | . 6 2 . . 12 9 7 5 . . Launcher 75 | . 10 19 . . 8 8 . 20 . 10 Special 3 | . . . . . . . . . . 3 Kinetic . | . . . . . . . . . . . Thermal 121 | . . . . . 41 38 23 19 . . Explosive 75 | . 10 19 . . 8 8 . 20 . 10 Electromagnetic 30 | . 14 2 . 4 10 . . . . . Robot Hit Streak 14 | . 5 5 . 2 14 10 11 6 . 7 Robot Miss Streak 5 | . 2 1 . 1 5 3 3 4 . 2 Penetration Max . | . . . . . . . . . . . Secondary Targets . | . . . . . . . . . . . Autonomous 92 | . . . . . 32 29 16 15 . . Shots Hit Robots 164 | . 15 7 . 3 46 36 23 27 . 7 Core Hits 198 | . 22 22 . 1 43 43 11 44 . 12 Critical Kills . | . . . . . . . . . . . Critical Parts Destroyed . | . . . . . . . . . . . Critical Strikes 1 | . . . . . 1 . . . . . Corrupt 1 | . . . . . 1 . . . . . Melee Attacks . | . . . . . . . . . . . Impact . | . . . . . . . . . . . Slashing . | . . . . . . . . . . . Piercing . | . . . . . . . . . . . Sneak Attacks . | . . . . . . . . . . . Combat Hostiles . | . . . . . . . . . . . Follow-up Attacks . | . . . . . . . . . . . Damage Inflicted 9860 | . 810 696 . 80 1892 1653 804 2780 . 1145 Guns 2347 | . 70 . . 50 807 704 408 308 . . Cannons 530 | . 57 38 . . 165 165 38 67 . . Explosions 6886 | . 681 641 . 30 862 767 358 2405 . 1142 Melee . | . . . . . . . . . . . Ramming 97 | . 2 17 . . 58 17 . . . 3 Kinetic . | . . . . . . . . . . . Thermal 4318 | . 105 . . 30 1255 1436 804 688 . . Explosive 5120 | . 576 641 . . 469 200 . 2092 . 1142 Electromagnetic 325 | . 127 38 . 50 110 . . . . . Impact . | . . . . . . . . . . . Slashing . | . . . . . . . . . . . Piercing . | . . . . . . . . . . . Highest Corruption 8 | . . . . . 7 . . . . 8 Average Corruption 5 | . . . . . 5 . . . . 6 Corruption Purged . | . . . . . . . . . . . Corruption Blocked . | . . . . . . . . . . . Effects 19 | . . . . . 15 . . . . 4 Message Errors 4 | . . . . . 1 . . . . 3 Matter Fused 4 | . . . . . 3 . . . . 1 Heat Flow Errors 4 | . . . . . 4 . . . . . Energy Discharges 3 | . . . . . 3 . . . . . Parts Fused 1 | . . . . . 1 . . . . . Data Loss (minor) 2 | . . . . . 2 . . . . . Misfires 1 | . . . . . 1 . . . . . Overload Shots . | . . . . . . . . . . . Overflow Damage 220 | . 30 . . 5 38 1 . 134 . 12 Projectiles . | . . . . . . . . . . . Explosions 220 | . 30 . . 5 38 1 . 134 . 12 Melee . | . . . . . . . . . . . Knockbacks 2 | . . . . . 1 1 . . . . Impact 2 | . . . . . 1 1 . . . . Kinetic . | . . . . . . . . . . . Secondary . | . . . . . . . . . . . Self-Inflicted Damage 1207 | . 75 18 . 32 125 219 20 681 . 37 Shots 48 | . 4 3 . 1 6 17 1 15 . 1 Rammed 21 | . 1 5 . . 9 4 . . . 2 Targets Rammed 22 | . 1 6 . . 9 4 . . . 2 Kicked . | . . . . . . . . . . . Crushed 1 | . . 1 . . . . . . . . Highest Temperature 681 | . 82 60 . 42 491 344 620 681 . 24 Average Temperature 177 | . 34 19 . 27 155 133 243 317 . 11 Received Heat Transfer 653 | . 126 38 . . 207 108 30 144 . . Effects 20 | . . . . . 3 . 4 13 . . Shutdowns 1 | . . . . . . . . 1 . . Energy Bleed 1 | . . . . . . . . 1 . . Interference 4 | . . . . . . . . 4 . . Short Circuit 1 | . . . . . . . . 1 . . Damage (minor) 2 | . . . . . . . 1 1 . . Damage (major) 10 | . . . . . 3 . 3 4 . . Damage (core) 1 | . . . . . . . . 1 . . Siege Activations . | . . . . . . . . . . . Martial Activations . | . . . . . . . . . . . Shielding Activations . | . . . . . . . . . . . Robots Disrupted . | . . . . . . . . . . . Combat Hostiles . | . . . . . . . . . . . Robots Corrupted 1 | . . . . . 1 . . . . . Combat Hostiles . | . . . . . . . . . . . Parts Fried 2 | . . . . . 2 . . . . . Impact Corruptions 1 | . . . . . 1 . . . . . Robots Melted 6 | . . . . . 2 . 3 1 . . Combat Hostiles 6 | . . . . . 2 . 3 1 . . Parts Melted 59 | . . . . . 15 23 10 11 . . Heat Transferred 13468 | . 150 . . 50 3615 4488 2678 2487 . . Parts Sabotaged . | . . . . . . . . . . . Parts Stolen 1 | . . . . . . . . 1 . . Parts Stripped . | . . . . . . . . . . . Power Chain Reactions 3 | . 1 . . 1 1 . . . . . Alert | -11 -10 -10 -10 -9 -8 -7 -7 -7 -7 -6 ------- Run | Yrd Mat Min Exi Min Mat Fac Low Low Zio Pro Maximum Alert Level 2 | . . . . . 2 1 . . . . Low Security (%) 84 | 100 100 100 . 100 70 72 . . . . Level 1 15 | . . . . . 28 27 . . . . Level 2 . | . . . . . . . . . . . Level 3 . | . . . . . . . . . . . Level 4 . | . . . . . . . . . . . Level 5 . | . . . . . . . . . . . High Security . | . . . . . . . . . . . Max Security . | . . . . . . . . . . . Peak Influence 405 | . 169 95 . 22 405 329 . . . . Initial 171 | . . 27 . . . 171 . . . . Average 89 | . 76 12 . 2 116 173 . . . . Influence Increases 2347 | . 284 177 . 24 683 568 195 330 . 86 Destroy 0b10 Robot/C 1460 | . 140 80 . . 360 320 160 320 . 80 Destroy 0b10 Robot/NC 105 | . 30 10 . 5 50 10 . . . . Destroy Leader 268 | . 32 20 . . 96 90 20 10 . . Allied During Kill 6 | . . . . . . . . . . 6 Successful Hack 35 | . 8 . . . 7 20 . . . . Disable Machine 180 | . 45 . . 15 45 75 . . . . Destroy Structure 233 | . 14 67 . 4 95 53 . . . . Partial Spotted 15 | . 15 . . . . . . . . . Lose Combat Pursuer 45 | . . . . . 30 . 15 . . . Influence Decreases 2347 | . 214 247 . 24 306 622 500 336 12 86 Entered New Map 385 | . . 43 . . . 206 120 4 12 . Time Decay 1689 | . 194 179 . 22 276 386 380 242 . 10 Lost Part 253 | . 20 25 . 2 30 30 . 90 . 56 Lost Ally 20 | . . . . . . . . . . 20 Squads Dispatched 18 | . 2 . . . 8 8 . . . . Investigation 4 | . 1 . . . 1 2 . . . . Extermination 2 | . . . . . . 2 . . . . Reinforcement 6 | . 1 . . . 4 1 . . . . Assault . | . . . . . . . . . . . Garrison 6 | . . . . . 3 3 . . . . Intercept . | . . . . . . . . . . . Searches Triggered . | . . . . . . . . . . . Construction Impeded 3 | . . . . . 2 1 . . . . Haulers Reinforced . | . . . . . . . . . . . Active Scanning Responses . | . . . . . . . . . . . Cargo Convoy Interrupts . | . . . . . . . . . . . Stealth | -11 -10 -10 -10 -9 -8 -7 -7 -7 -7 -6 --------- Run | Yrd Mat Min Exi Min Mat Fac Low Low Zio Pro Distress Signals 5 | . 1 . . . 4 . . . . . Communications Jammed . | . . . . . . . . . . . Distress Signals . | . . . . . . . . . . . Times Spotted 107 | . 12 14 . 3 25 17 9 21 . 6 Peak Tracking Total 13 | . 5 9 . 3 5 4 4 13 . 4 Tactical Retreats 4 | . . 1 . . 2 . 1 . . . Traps | -11 -10 -10 -10 -9 -8 -7 -7 -7 -7 -6 ------- Run | Yrd Mat Min Exi Min Mat Fac Low Low Zio Pro Traps Triggered 2 | . 1 . . . . 1 . . . . Indirectly . | . . . . . . . . . . . Trap Hack Attempts . | . . . . . . . . . . . Triggered . | . . . . . . . . . . . Disarmed . | . . . . . . . . . . . Reprogrammed . | . . . . . . . . . . . Reused . | . . . . . . . . . . . Traps Extracted . | . . . . . . . . . . . Installed . | . . . . . . . . . . . Triggered . | . . . . . . . . . . . Machines | -11 -10 -10 -10 -9 -8 -7 -7 -7 -7 -6 ---------- Run | Yrd Mat Min Exi Min Mat Fac Low Low Zio Pro Machines Disabled 17 | . 3 . . 1 3 5 . 4 . 1 Max in Single Turn 3 | . 2 . . 1 1 3 . 2 . 1 Machines Repaired . | . . . . . . . . . . . Machines Dismantled . | . . . . . . . . . . . Machines Sabotaged . | . . . . . . . . . . . Overloaded Fab Kills . | . . . . . . . . . . . Hacking | -11 -10 -10 -10 -9 -8 -7 -7 -7 -7 -6 --------- Run | Yrd Mat Min Exi Min Mat Fac Low Low Zio Pro Machines Accessed 7 | . 1 . 1 . 1 2 2 . . . Terminals 2 | . 1 . . . 1 . . . . . Fabricators . | . . . . . . . . . . . Repair Stations . | . . . . . . . . . . . Recycling Units . | . . . . . . . . . . . Scanalyzers 1 | . . . . . . 1 . . . . Garrison Access 1 | . . . . . . 1 . . . . Total Hacks 20 | . 4 . 1 . 5 8 2 . . . Successful 9 | . 1 . 1 . 1 4 2 . . . Failed 11 | . 3 . . . 4 4 . . . . Catastrophic 2 | . 1 . . . . 1 . . . . Database Lockouts . | . . . . . . . . . . . Manual 12 | . 4 . 1 . 5 . . . 1 1 Terminals 9 | . 4 . . . 5 . . . . . Fabricators . | . . . . . . . . . . . Repair Stations . | . . . . . . . . . . . Recycling Units . | . . . . . . . . . . . Scanalyzers 4 | . . . . . . 4 . . . . Garrison Access 4 | . . . . . . 4 . . . . Terminal Hacks 5 | . 1 . 1 . 1 . 2 . . . Open Door 2 | . . . . . . . 2 . . . Branch Access Points 2 | . 1 . . . 1 . . . . . Proto ID Catalog 1 | . . . 1 . . . . . . . Fabricator Hacks . | . . . . . . . . . . . Repair Station Hacks . | . . . . . . . . . . . Recycling Unit Hacks . | . . . . . . . . . . . Scanalyzer 4 | . . . . . . 4 . . . . Insert Component 2 | . . . . . . 2 . . . . Analyze 1 | . . . . . . 1 . . . . Retrieve Study 1 | . . . . . . 1 . . . . Garrison Access Hacks . | . . . . . . . . . . . Unauthorized Hacks . | . . . . . . . . . . . Terminals . | . . . . . . . . . . . Fabricators . | . . . . . . . . . . . Repair Stations . | . . . . . . . . . . . Recycling Units . | . . . . . . . . . . . Scanalyzers . | . . . . . . . . . . . Garrison Access . | . . . . . . . . . . . Data Cores Recovered . | . . . . . . . . . . . Used . | . . . . . . . . . . . Hacking Detections 4 | . 1 . . . 1 2 . . . . Full Trace Events 2 | . . . . . . 2 . . . . Feedback Events 1 | . . . . . . 1 . . . . Hackware Fried 1 | . . . . . . 1 . . . . Feedback Blocked . | . . . . . . . . . . . Robot Schematics Acquired . | . . . . . . . . . . . Robots Built . | . . . . . . . . . . . Authchips . | . . . . . . . . . . . Time . | . . . . . . . . . . . Total Robot Build Rating . | . . . . . . . . . . . Part Schematics Acquired 1 | . . . . . . 1 . . . . Parts Built . | . . . . . . . . . . . Authchips . | . . . . . . . . . . . Time . | . . . . . . . . . . . Total Part Build Rating . | . . . . . . . . . . . Part Studies Acquired 1 | . . . . . . 1 . . . . Parts Repaired . | . . . . . . . . . . . Time . | . . . . . . . . . . . Parts Recycled . | . . . . . . . . . . . Recycled Matter . | . . . . . . . . . . . Retrieved Matter . | . . . . . . . . . . . Retrieved Components . | . . . . . . . . . . . Parts Scanalyzed 1 | . . . . . . 1 . . . . Part Schematics Acquired 1 | . . . . . . 1 . . . . Parts Damaged . | . . . . . . . . . . . Bothacking | -11 -10 -10 -10 -9 -8 -7 -7 -7 -7 -6 ------------ Run | Yrd Mat Min Exi Min Mat Fac Low Low Zio Pro Used RIF Installer . | . . . . . . . . . . . Robots Hacked . | . . . . . . . . . . . Non-combat . | . . . . . . . . . . . Combat . | . . . . . . . . . . . Robot Hacks Applied . | . . . . . . . . . . . Relay Couplers Released . | . . . . . . . . . . . Fabnet Peak Effective % . | . . . . . . . . . . . Robots Rewired . | . . . . . . . . . . . Allies Hacked . | . . . . . . . . . . . Hacks Repelled . | . . . . . . . . . . . Allies | -11 -10 -10 -10 -9 -8 -7 -7 -7 -7 -6 -------- Run | Yrd Mat Min Exi Min Mat Fac Low Low Zio Pro Total Allies 5 | . . 1 . . . . . . 4 . Largest Group 4 | . . 1 1 . . . . . 4 4 Highest-Rated Group 157 | . . 31 31 . . . . . 157 157 Highest-Rated Ally 41 | . . 31 31 . . . . . 41 41 Total Orders . | . . . . . . . . . . . Ally Attacks 27 | . . . . . . . . . . 27 Total Damage 149 | . . . . . . . . . . 149 Kills . | . . . . . . . . . . . Allies Corrupted 1 | . . . . . . . . . . 1 Allies Melted . | . . . . . . . . . . . Intel | -11 -10 -10 -10 -9 -8 -7 -7 -7 -7 -6 ------- Run | Yrd Mat Min Exi Min Mat Fac Low Low Zio Pro Active Infowar (turns) 1203 | . . . . . . . . . 888 315 Sensors 1203 | . . . . . . . . . 888 315 Robot Analysis Total . | . . . . . . . . . . . Derelict Logs Recovered 1 | . . . . . . . 1 . . . Drone Launches . | . . . . . . . . . . . Drone Recoveries . | . . . . . . . . . . . Exploration | -11 -10 -10 -10 -9 -8 -7 -7 -7 -7 -6 ------------- Run | Yrd Mat Min Exi Min Mat Fac Low Low Zio Pro Turns Passed 7922 | 74 450 1114 459 170 1310 908 880 869 1228 460 Spaces Moved 3694 | 48 241 662 252 52 525 345 334 278 766 191 Core 20 | 14 . . . . . . . . . 6 Treads 2379 | 34 241 662 252 52 150 345 334 264 . 45 Legs . | . . . . . . . . . . . Wheels 1295 | . . . . . 375 . . 14 766 140 Hover . | . . . . . . . . . . . Flight . | . . . . . . . . . . . Fastest Speed 50 | 50 160 160 160 320 140 210 250 155 155 170 Average Speed 197 | 127 160 160 179 320 212 246 250 288 156 198 Slowest Speed 750 | 160 160 160 320 320 400 250 250 320 170 750 Overloaded Moves . | . . . . . . . . . . . Propulsion Burnouts . | . . . . . . . . . . . Robots Hopped . | . . . . . . . . . . . Potential Cave-ins . | . . . . . . . . . . . Cave-ins Triggered . | . . . . . . . . . . . Exploration Rate (%) 42 | 3 49 97 64 18 30 11 57 48 71 23 Regions Visited 10 Branch Regions 7 Pre-discovered Areas 1 | . . 1 . . . . . . . . Known Exits Taken 1 | . 1 . . . . . . . . . Unknown Exits Taken 9 | 1 . 1 1 1 1 1 1 1 1 . Scrap Searched 6 | . . 1 . . . . 3 1 1 . Spaces Dug . | . . . . . . . . . . . Terrain Destroyed 541 | . 13 97 . 4 150 54 2 177 . 44 Melee . | . . . . . . . . . . . Projectile 14 | . . . . . 6 3 2 3 . . AOE 527 | . 13 97 . 4 144 51 . 174 . 44 Terrain Rammed . | . . . . . . . . . . . Walls Destroyed . | . . . . . . . . . . . Machines Disabled . | . . . . . . . . . . . Actions | -11 -10 -10 -10 -9 -8 -7 -7 -7 -7 -6 --------- Run | Yrd Mat Min Exi Min Mat Fac Low Low Zio Pro Total 4154 | 60 277 689 260 53 685 382 373 322 799 254 Wait 216 | . 1 2 . . 102 4 20 19 24 44 Move 3684 | 47 240 661 251 51 524 344 333 277 765 191 Hop . | . . . . . . . . . . . Pick Up 60 | 7 10 1 2 . 10 6 12 2 7 3 Fast Attach 2 | 1 . . 1 . . . . . . . Attach 44 | 5 2 2 . . 13 7 1 7 3 4 Detach 4 | . . . . . 3 1 . . . . Swap 20 | . 9 6 2 . 3 . . . . . Drop 13 | . 2 . 4 . 3 2 . 2 . . Fire 89 | . 12 11 . 2 18 14 7 15 . 10 Melee . | . . . . . . . . . . . Ram 6 | . . . . . 6 . . . . . Kick . | . . . . . . . . . . . Crush 16 | . 1 6 . . 3 4 . . . 2 Escape Stasis . | . . . . . . . . . . . Rewire . | . . . . . . . . . . . Trap . | . . . . . . . . . . . Miscellaneous . | . . . . . . . . . . . Route ------- -11/Scrapyard -10/Materials (discovered 3 exits: [*Mat x2] / *Min) -10/Mines (discovered 3 exits: [*Mat] / *Exi / [*Sub]) -10/Exiles -9/Mines -8/Materials (discovered 2 exits: *Fac / Sto) -7/Factory -7/Lower Caves -7/Lower Caves -7/Zion -6/Proximity Caves (discovered 1 exit: Fac) History --------- Turn | Location | Event 4 | -11/Scrapyard | Discovered new exit (range 16) 75 | -11/Scrapyard | Entered Materials 207 | -10/Materials | Identified exit to Mines 260 | -10/Materials | Discovered new exit (range 14) 290 | -10/Materials | Discovered new exit (range 9) 337 | -10/Materials | Build established: Mutant 525 | -10/Materials | Entered Mines 704 | -10/Mines | Discovered new exit (range 15) 752 | -10/Mines | Joined a pair of Derelicts in attacking an 0b10 outpost 891 | -10/Mines | Assembled infested the area 974 | -10/Mines | Destroyed 7 combat bots 981 | -10/Mines | Lost 3 parts (1p1n1w) 1101 | -10/Mines | Escorted by a lone wolf Derelict 1121 | -10/Mines | Learned location of Storage (-8) 1610 | -10/Mines | Discovered new exit (range 6) 1631 | -10/Mines | Deemed a non-threat by the Exiles lab entrance 1632 | -10/Mines | Discovered new exit (range 5) 1639 | -10/Mines | Entered Exiles 1639 | -10/Exiles | Accompanied by 1 ally 1683 | -10/Exiles | Met 8R-AWN 1702 | -10/Exiles | Met EX-HEX 1753 | -10/Exiles | Met EX-BIN 1772 | -10/Exiles | Aligned with FarCom system 1774 | -10/Exiles | Given EX-Vault access code 1811 | -10/Exiles | Opened EX-Vault 1822 | -10/Exiles | Found AWS/Thermal 1828 | -10/Exiles | Found Firepult 1859 | -10/Exiles | Warned to stay clear of 0b10 Research branches 1915 | -10/Exiles | Met EX-DEC 2062 | -10/Exiles | Discovered new exit (range 10) 2098 | -10/Exiles | Stole two prototypes: AWS/Thermal, Firepult 2098 | -10/Exiles | Entered Mines 2178 | -9/Mines | Met a Derelict bent on vengeance 2232 | -9/Mines | Discovered new exit (range 11) 2268 | -9/Mines | Entered Materials 2268 | -8/Materials | Evolved 4 slots: Utility x2, Weapon x2 2555 | -8/Materials | Build established: Skirmisher 2695 | -8/Materials | Discovered new exit (range 15) 3145 | -8/Materials | Identified exit to Storage 3214 | -8/Materials | Garrison activated, responded to threat 3239 | -8/Materials | Destroyed 8 combat bots 3578 | -8/Materials | Entered Factory 3578 | -7/Factory | Evolved 2 slots: Utility x2 3580 | -7/Factory | FarCom data flow suspended 3737 | -7/Factory | Build established: Scavenger-Mutant 4198 | -7/Factory | Build established: Tank 4335 | -7/Factory | Hacking Suite fried by hacking feedback 4478 | -7/Factory | Discovered new exit (range 3) 4486 | -7/Factory | Entered Lower Caves 4505 | -7/Lower Caves | Attracted the attention of an 0b10 checkpoint 4575 | -7/Lower Caves | Destroyed 8 combat bots 4606 | -7/Lower Caves | Build established: Scavenger-Tank 5186 | -7/Lower Caves | Learned Factory garrison access intel 5252 | -7/Lower Caves | Discovered new exit (range 13) 5366 | -7/Lower Caves | Entered another Lower Caves area 5536 | -7/Lower Caves | Encountered a Warlord checkpoint 5677 | -7/Lower Caves | Found DCF Scrap (17 items) 5750 | -7/Lower Caves | Build established: Bomber 5794 | -7/Lower Caves | Attracted the attention of an 0b10 base 5801 | -7/Lower Caves | AWS/Thermal suddenly broke down 5840 | -7/Lower Caves | Destroyed 13 combat bots 5850 | -7/Lower Caves | Lost 5 parts (1n3u1w) 6093 | -7/Lower Caves | Build established: Mutant 6191 | -7/Lower Caves | Encountered a Master Thief 6193 | -7/Lower Caves | Encountered a Master Thief 6194 | -7/Lower Caves | Encountered a Master Thief 6195 | -7/Lower Caves | Encountered a Master Thief 6195 | -7/Lower Caves | Dirty Datajack stolen by Master Thief 6196 | -7/Lower Caves | Encountered a Master Thief 6215 | -7/Lower Caves | Discovered new exit (range 14) 6234 | -7/Lower Caves | Lost 3 parts (1p2u) 6235 | -7/Lower Caves | Entered Zion 6732 | -7/Zion | Met Imprinter 6760 | -7/Zion | Imprinted 6762 | -7/Zion | Declared Zion's savior 6994 | -7/Zion | Found Relay Coupler [Programmer] 7002 | -7/Zion | Found Relay Coupler [Programmer] 7424 | -7/Zion | Discovered new exit (range 9) 7463 | -7/Zion | Entered Proximity Caves 7463 | -6/Proximity Caves | Accompanied by 4 allies 7464 | -6/Proximity Caves | Identified exit to Factory 7561 | -6/Proximity Caves | Acquired the password to a Derelict Tinkerer's latest research 7587 | -6/Proximity Caves | Found Prototype Special Weapon 7654 | -6/Proximity Caves | Build established: Derelict-Mutant 7719 | -6/Proximity Caves | Caught by Unaware searching for contraband prototypes 7738 | -6/Proximity Caves | Identified Molecular Deconstructor 7744 | -6/Proximity Caves | Caught by Unaware searching for contraband prototypes 7763 | -6/Proximity Caves | Core integrity fell below 50% 7772 | -6/Proximity Caves | Lost 5 allies 7821 | -6/Proximity Caves | Lost 10 parts (2p2n3u3w) 7823 | -6/Proximity Caves | Core integrity fell below 20% 7923 | -6/Proximity Caves | Destroyed by H-66 Slayer with Gauss Rifle Last Messages --------------- 07808_ Penetrated by Slug. 07810_ The unstable cave ceiling collapses. 07814_ Slug penetrates Wall. 07814_ Penetrated by Slug. 07819_ Acquired Corrupted Hvy. Riot Gun. 07820_ Integrated Corrupted Hvy. Riot Gun (+1). 07827_ Penetrated by Slug. 07833_ Hvy. Riot Gun destroyed. 07836_ Acquired Corrupted Arm. Treads+. 07837_ Integrated Corrupted Arm. Treads+ (+7). 07839_ #1O 07857_ System corrupted: Matter fused (-6). 07877_ Penetrated by Slug. 07899_ OUJ 92Y0 FT DSPB>OH1Q6RDGR85GJNQM 07912_ Penetrated by Slug. 07912_ Slammed into H-66 Slayer. 07914_ T28HOGGYZ